[Event "Lueneburg Open-A 2019"]
[Site "Lueneburg"]
[Date "2019.08.03"]
[Round "1.2"]
[White "Beuter, Christof"]
[Black "Kollars, Dmitrij"]
[Result "0-1"]
[ECO "C70"]
[WhiteElo "1930"]
[BlackElo "2581"]
[Annotator "RC"]
[PlyCount "70"]
[EventDate "2019.08.03"]
[EventType "swiss"]
[EventCountry "GER"]
[SourceTitle "playchess.com"]
[Source "ChessBase"]
[SourceQuality "1"]
[TimeControl "40/5400+30:1800+30"]

1. e4 {[%emt 0:00:00]} e5 {[%emt 0:00:00]} 2. Nf3 {[%emt 0:00:00]} Nc6 {[%emt 0:00:00]} 3. Bb5 {[%emt 0:00:00]} a6 {[%emt 0:00:19]} 4. Ba4 {[%emt 0:00:00]} g6 {[%emt 0:01:02]} 5. c3 {[%emt 0:00:58]} Bg7 {[%emt 0:00:14]} 6. d3 {[%emt 0:01:20]} Nge7 {[%emt 0:00:16]} 7. O-O {[%emt 0:01:30]} O-O {[%emt 0:00:46]} 8. Re1 {[%emt 0:01:25]} d6 {[%emt 0:01:51]} 9. Nbd2 {[%emt 0:01:52]} h6 {[%emt 0:03:02]} 10. Nf1 {[%emt 0:07:04]} f5 {[%emt 0:02:49]} 11. Bb3+ {[%emt 0:03:55]} Kh8 {[%emt 0:02:48]} 12. exf5 {[%emt 0:01:31]} Nxf5 {[%emt 0:02:19]} 13. Ne3 {[%emt 0:02:25]} Nxe3 {[%emt 0:00:58]} 14. Bxe3 {[%emt 0:00:15]} Bg4 {[%emt 0:03:18]} 15. Bd5 {[%emt 0:02:50]} Ne7 {[%emt 0:05:20]} 16. Qa4 {[%emt 0:04:21]} Bd7 {[%emt 0:01:25]} 17. Qb3 {[%emt 0:05:44]} Nxd5 {[%emt 0:01:56]} 18. Qxd5 {[%emt 0:00:10]} Bc6 {[%emt 0:00:23]} 19. Qe6 {[%emt 0:00:23]} Bxf3 {[%emt 0:04:56]} 20. gxf3 {[%emt 0:01:17]} Qf6 {[%emt 0:01:24]} 21. Qg4 {[%emt 0:02:24]} Kh7 {[%emt 0:08:20]} 22. f4 {[%emt 0:10:20]} exf4 {[%emt 0:03:48]} 23. Bd4 {[%emt 0:00:30]} Qf7 {[%emt 0:00:19]} 24. Bxg7 {[%emt 0:01:20]} Kxg7 {[%emt 0:00:16]} 25. Re6 {[%emt 0:04:07]} h5 {[%emt 0:04:53]} 26. Qe2 {[%emt 0:03:08]} f3 {[%emt 0:04:45]} 27. Qe4 {[%emt 0:01:01]} Rae8 {[%emt 0:00:34]} 28. Re1 {[%emt 0:03:07]} Rxe6 {[%emt 0:00:30]} 29. Qxe6 {[%emt 0:00:30]} Qf4 {[%emt 0:01:25]} 30. Kh1 {[%emt 0:03:35]} Rf7 {[%emt 0:06:58]} 31. Qe4 {[%emt 0:08:07]} Qxe4 {[%emt 0:06:14]} 32. Rxe4 {[%emt 0:00:21]} Rf5 {[%emt 0:00:26]} 33. h3 {[%emt 0:00:54]} Re5 {[%emt 0:02:27]} 34. Rxe5 {[%emt 0:04:37]} dxe5 {[%emt 0:00:05]} 35. h4 {[%emt 0:00:32]} Kf6 {[%emt 0:03:18]} 0-1

[Event "Lueneburg Open-A 2019"]
[Site "Lueneburg"]
[Date "2019.08.03"]
[Round "1.4"]
[White "Modder, Frank"]
[Black "Sebastian, Dirk"]
[Result "0-1"]
[ECO "C45"]
[WhiteElo "1920"]
[BlackElo "2453"]
[Annotator "ChessBase"]
[PlyCount "60"]
[EventDate "2019.08.03"]
[EventType "swiss"]
[EventCountry "GER"]
[SourceTitle "playchess.com"]
[Source "ChessBase"]
[SourceQuality "1"]
[TimeControl "40/5400+30:1800+30"]

1. e4 {[%emt 0:08:32]} e5 {[%emt 0:00:09]} 2. Nf3 {[%emt 0:00:11]} Nc6 {[%emt 0:00:04]} 3. d4 {[%emt 0:00:16]} exd4 {[%emt 0:00:11]} 4. Nxd4 {[%emt 0:00:06]} Nf6 {[%emt 0:01:04]} 5. Nxc6 {[%emt 0:00:16]} bxc6 {[%emt 0:00:04]} 6. e5 {[%emt 0:00:05]} Qe7 {[%emt 0:00:29]} 7. Qe2 {[%emt 0:00:15]} Nd5 {[%emt 0:00:07]} 8. c4 {[%emt 0:00:29]} Nb6 {[%emt 0:00:21]} 9. Nc3 {[%emt 0:00:14]} Qe6 {[%emt 0:02:23]} 10. Qe4 {[%emt 0:00:22]} Bb4 {[%emt 0:02:21]} 11. Bd2 {[%emt 0:02:14]} Ba6 {[%emt 0:04:14]} 12. b3 {[%emt 0:05:18]} Bxc3 {[%emt 0:01:33]} 13. Bxc3 {[%emt 0:00:05]} d5 {[%emt 0:00:28]} 14. cxd5 {[%emt 0:07:50]} cxd5 {[%emt 0:00:44]} 15. Qb4 {[%emt 0:05:29]} Bxf1 {[%emt 0:10:17]} 16. Kxf1 {[%emt 0:00:06]} Rc8 {[%emt 0:10:08]} 17. Bd4 {[%emt 0:07:23]} Nd7 {[%emt 0:05:22]} 18. Bc5 {[%emt 0:15:15]} Rb8 {[%emt 0:19:11]} 19. Qa4 {[%emt 0:05:37]} a6 {[%emt 0:07:48]} 20. f3 {[%emt 0:06:58]} Rb5 {[%emt 0:02:03]} 21. Rc1 {[%emt 0:04:27]} Nxc5 {[%emt 0:09:17]} 22. Rxc5 {[%emt 0:00:07]} O-O {[%emt 0:03:15]} 23. Rxb5 {[%emt 0:07:19]} axb5 {[%emt 0:00:03]} 24. Qd4 {[%emt 0:00:16]} c5 {[%emt 0:05:55]} 25. Qxc5 {[%emt 0:02:31]} Rc8 {[%emt 0:00:14]} 26. Qe3 {[%emt 0:01:58]} Rc2 {[%emt 0:01:44]} 27. h3 {[%emt 0:04:54]} Qg6 {[%emt 0:02:02]} 28. g4 {[%emt 0:05:15]} Rb2 {[%emt 0:02:11]} 29. Rg1 {[%emt 0:02:05]} Qb1+ {[%emt 0:00:19]} 30. Qe1 {[%emt 0:00:02]} Qd3+ {[%emt 0:00:06]} 0-1

[Event "Lueneburg Open-A 2019"]
[Site "Lueneburg"]
[Date "2019.08.03"]
[Round "1.5"]
[White "Feuerstack, Aljoscha"]
[Black "Schwarz, Jochen"]
[Result "1-0"]
[ECO "C05"]
[WhiteElo "2441"]
[BlackElo "1909"]
[Annotator "NA"]
[PlyCount "61"]
[EventDate "2019.08.03"]
[EventType "swiss"]
[EventCountry "GER"]
[SourceTitle "playchess.com"]
[Source "ChessBase"]
[SourceQuality "1"]
[TimeControl "40/5400+30:1800+30"]

1. e4 {[%emt 0:00:00]} e6 {[%emt 0:00:00]} 2. d4 {[%emt 0:00:00]} d5 {[%emt 0:00:00]} 3. Nd2 {[%emt 0:00:00]} Nf6 {[%emt 0:00:02]} 4. e5 {[%emt 0:00:11]} Nfd7 {[%emt 0:00:09]} 5. c3 {[%emt 0:00:32]} c5 {[%emt 0:00:17]} 6. f4 {[%emt 0:00:31]} Nc6 {[%emt 0:00:56]} 7. Ndf3 {[%emt 0:00:09]} Qb6 {[%emt 0:01:47]} 8. Ne2 {[%emt 0:00:44]} cxd4 {[%emt 0:02:27]} 9. cxd4 {[%emt 0:01:54]} Be7 {[%emt 0:02:51]} 10. Nc3 {[%emt 0:00:54]} O-O {[%emt 0:06:01]} 11. Bd3 {[%emt 0:03:46]} f6 {[%emt 0:02:01]} 12. h4 {[%emt 0:02:35]} fxe5 {[%emt 0:03:26]} 13. dxe5 {[%emt 0:00:27]} Ndxe5 {[%emt 0:15:31]} 14. fxe5 {[%emt 0:02:00]} Nxe5 {[%emt 0:00:55]} 15. Bxh7+ {[%emt 0:06:40]} Kh8 {[%emt 0:01:42]} 16. Bc2 {[%emt 0:01:03]} Bd7 {[%emt 0:03:30]} 17. Nd4 {[%emt 0:26:12]} Be8 {[%emt 0:09:31]} 18. Be3 {[%emt 0:15:14]} Bf6 {[%emt 0:15:25]} 19. O-O {[%emt 0:07:05]} Kg8 {[%emt 0:04:16]} 20. Bf2 {[%emt 0:02:56]} Qxb2 {[%emt 0:05:45]} 21. Nxe6 {[%emt 0:02:52]} Qxc3 {[%emt 0:01:35]} 22. Nxf8 {[%emt 0:00:34]} Kxf8 {[%emt 0:03:06]} 23. Qxd5 {[%emt 0:02:29]} Bf7 {[%emt 0:01:47]} 24. Qxb7 {[%emt 0:03:52]} Re8 {[%emt 0:01:32]} 25. Rac1 {[%emt 0:02:27]} Qa5 {[%emt 0:02:18]} 26. Bh7 {[%emt 0:02:40]} g6 {[%emt 0:02:08]} 27. Bd4 {[%emt 0:00:49]} Nf3+ {[%emt 0:02:33]} 28. Rxf3 {[%emt 0:00:31]} Bxd4+ {[%emt 0:00:06]} 29. Kh1 {[%emt 0:01:14]} Re1+ {[%emt 0:02:58]} 30. Rf1 {[%emt 0:00:05]} Rxc1 {[%emt 0:00:16]} 31. Qxf7# {[%emt 0:15:04]} 1-0

[Event "Lueneburg Open-A 2019"]
[Site "Lueneburg"]
[Date "2019.08.03"]
[Round "1.6"]
[White "Klausch, Uwe"]
[Black "Carlstedt, Jonathan"]
[Result "0-1"]
[ECO "C74"]
[WhiteElo "1900"]
[BlackElo "2408"]
[Annotator "NA"]
[PlyCount "44"]
[EventDate "2019.08.03"]
[EventType "swiss"]
[EventCountry "GER"]
[SourceTitle "playchess.com"]
[Source "ChessBase"]
[SourceQuality "1"]
[TimeControl "40/5400+30:1800+30"]

1. e4 {[%emt 0:00:00]} e5 {[%emt 0:00:34]} 2. Nf3 {[%emt 0:00:00]} Nc6 {[%emt 0:00:04]} 3. Bb5 {[%emt 0:00:43]} a6 {[%emt 0:00:11]} 4. Ba4 {[%emt 0:00:17]} d6 {[%emt 0:00:08]} 5. c3 {[%emt 0:01:15]} f5 {[%emt 0:02:04]} 6. d3 {[%emt 0:02:22]} Be7 {[%emt 0:00:57]} 7. O-O {[%emt 0:14:23]} Nf6 {[%emt 0:00:40]} 8. Qe2 {[%emt 0:03:58]} O-O {[%emt 0:07:04]} 9. Bb3+ {[%emt 0:11:23]} Kh8 {[%emt 0:00:57]} 10. Ng5 {[%emt 0:03:23]} d5 {[%emt 0:01:37]} 11. exd5 {[%emt 0:57:46]} Nxd5 {[%emt 0:00:09]} 12. Qh5 {[%emt 0:00:00]} Bxg5 {[%emt 0:00:33]} 13. Bxg5 {[%emt 0:00:00]} Nf6 {[%emt 0:00:58]} 14. Qe2 {[%emt 0:00:00]} f4 {[%emt 0:08:14]} 15. Nd2 {[%emt 0:00:00]} Qe8 {[%emt 0:06:33]} 16. Bh4 {[%emt 0:00:00]} Ng4 {[%emt 0:03:10]} 17. f3 {[%emt 0:00:00]} Nxh2 {[%emt 0:06:59]} 18. Rfc1 {[%emt 0:00:00]} Qh5 {[%emt 0:00:11]} 19. Be1 {[%emt 0:03:14]} Rf6 {[%emt 0:00:35]} 20. Nf1 {[%emt 0:00:40]} Rh6 {[%emt 0:01:58]} 21. Nxh2 {[%emt 0:00:34]} Qxh2+ {[%emt 0:00:11]} 22. Kf1 {[%emt 0:00:12]} Rg6 {[%emt 0:00:31]} 0-1

[Event "Lueneburg Open-A 2019"]
[Site "Lueneburg"]
[Date "2019.08.03"]
[Round "1.8"]
[White "Ziese, Gerhard"]
[Black "Ertan, Can"]
[Result "0-1"]
[ECO "A23"]
[WhiteElo "1897"]
[BlackElo "2396"]
[Annotator "NA"]
[PlyCount "82"]
[EventDate "2019.08.03"]
[EventType "swiss"]
[EventCountry "GER"]
[SourceTitle "playchess.com"]
[Source "ChessBase"]
[SourceQuality "1"]
[TimeControl "40/5400+30:1800+30"]

1. c4 {[%emt 0:00:00]} e5 {[%emt 0:00:00]} 2. g3 {[%emt 0:00:00]} Nf6 {[%emt 0:00:09]} 3. Bg2 {[%emt 0:00:00]} Bc5 {[%emt 0:00:03]} 4. Nc3 {[%emt 0:01:25]} c6 {[%emt 0:00:18]} 5. e3 {[%emt 0:00:51]} d5 {[%emt 0:01:52]} 6. d4 {[%emt 0:00:56]} exd4 {[%emt 0:00:13]} 7. exd4 {[%emt 0:00:11]} Bb4 {[%emt 0:00:08]} 8. Qb3 {[%emt 0:03:06]} Qe7+ {[%emt 0:01:34]} 9. Nge2 {[%emt 0:01:31]} dxc4 {[%emt 0:05:37]} 10. Qxc4 {[%emt 0:00:27]} Be6 {[%emt 0:00:03]} 11. Qd3 {[%emt 0:00:35]} O-O {[%emt 0:00:03]} 12. O-O {[%emt 0:00:29]} Qd7 {[%emt 0:00:43]} 13. Bg5 {[%emt 0:02:56]} Nd5 {[%emt 0:00:30]} 14. Rfd1 {[%emt 0:11:10]} Re8 {[%emt 0:02:29]} 15. Nf4 {[%emt 0:03:25]} Nxf4 {[%emt 0:05:11]} 16. Bxf4 {[%emt 0:00:17]} Bg4 {[%emt 0:00:21]} 17. Re1 {[%emt 0:03:20]} Na6 {[%emt 0:00:04]} 18. Be4 {[%emt 0:03:06]} h6 {[%emt 0:02:17]} 19. a3 {[%emt 0:04:35]} Bd6 {[%emt 0:01:26]} 20. Be3 {[%emt 0:02:20]} Rad8 {[%emt 0:00:42]} 21. b4 {[%emt 0:04:18]} Be5 {[%emt 0:06:51]} 22. Ne2 {[%emt 0:04:10]} Bxe2 {[%emt 0:05:49]} 23. Rxe2 {[%emt 0:00:49]} Bxd4 {[%emt 0:00:03]} 24. Rd1 {[%emt 0:00:54]} c5 {[%emt 0:00:11]} 25. Bxd4 {[%emt 0:01:28]} Qxd4 {[%emt 0:01:04]} 26. Bh7+ {[%emt 0:02:24]} Kh8 {[%emt 0:00:57]} 27. Rxe8+ {[%emt 0:00:47]} Rxe8 {[%emt 0:00:04]} 28. Qc2 {[%emt 0:00:44]} Qf6 {[%emt 0:01:25]} 29. b5 {[%emt 0:04:01]} Nb8 {[%emt 0:15:48]} 30. Bf5 {[%emt 0:07:17]} b6 {[%emt 0:00:05]} 31. Bh3 {[%emt 0:00:48]} Rd8 {[%emt 0:00:12]} 32. Re1 {[%emt 0:02:35]} g6 {[%emt 0:00:31]} 33. Qe2 {[%emt 0:02:15]} Kg7 {[%emt 0:00:09]} 34. Qe7 {[%emt 0:01:07]} Rd2 {[%emt 0:01:45]} 35. Qxf6+ {[%emt 0:02:34]} Kxf6 {[%emt 0:00:07]} 36. Re8 {[%emt 0:01:16]} Nd7 {[%emt 0:00:04]} 37. Ra8 {[%emt 0:00:31]} c4 {[%emt 0:00:03]} 38. Rxa7 {[%emt 0:00:37]} Nc5 {[%emt 0:00:22]} 39. Bf1 {[%emt 0:12:46]} c3 {[%emt 0:00:06]} 40. Bc4 {[%emt 0:00:10]} c2 {[%emt 0:00:39]} 41. Rxf7+ {[%emt 0:30:09]} Ke5 {[%emt 0:30:11]} 0-1

[Event "Lueneburg Open-A 2019"]
[Site "Lueneburg"]
[Date "2019.08.03"]
[Round "1.9"]
[White "Sriram, Jha"]
[Black "Berres, Eric"]
[Result "1-0"]
[ECO "A05"]
[WhiteElo "2381"]
[BlackElo "1890"]
[Annotator "NA"]
[PlyCount "93"]
[EventDate "2019.08.03"]
[EventType "swiss"]
[EventCountry "GER"]
[SourceTitle "playchess.com"]
[Source "ChessBase"]
[SourceQuality "1"]
[TimeControl "40/5400+30:1800+30"]

1. Nf3 {[%emt 0:01:22]} Nf6 {[%emt 0:00:00]} 2. g3 {[%emt 0:00:50]} d5 {[%emt 0:01:06]} 3. Bg2 {[%emt 0:00:05]} e6 {[%emt 0:01:31]} 4. O-O {[%emt 0:00:09]} Be7 {[%emt 0:01:38]} 5. d3 {[%emt 0:00:13]} b6 {[%emt 0:03:27]} 6. Nbd2 {[%emt 0:00:36]} Bb7 {[%emt 0:00:41]} 7. e4 {[%emt 0:03:05]} dxe4 {[%emt 0:10:35]} 8. Ng5 {[%emt 0:00:34]} Nbd7 {[%emt 0:03:17]} 9. dxe4 {[%emt 0:06:24]} h6 {[%emt 0:06:13]} 10. e5 {[%emt 0:05:09]} Bxg2 {[%emt 0:07:46]} 11. exf6 {[%emt 0:02:47]} Bxf1 {[%emt 0:14:29]} 12. Nxe6 {[%emt 0:03:11]} Qc8 {[%emt 0:06:49]} 13. Nxg7+ {[%emt 0:02:51]} Kf8 {[%emt 0:00:58]} 14. fxe7+ {[%emt 0:00:17]} Kxg7 {[%emt 0:03:09]} 15. Nxf1 {[%emt 0:23:08]} Nf6 {[%emt 0:05:10]} 16. Bf4 {[%emt 0:01:43]} Qe6 {[%emt 0:03:43]} 17. Ne3 {[%emt 0:01:07]} Rhe8 {[%emt 0:04:42]} 18. Qd3 {[%emt 0:03:38]} Qe4 {[%emt 0:02:26]} 19. Qxe4 {[%emt 0:07:57]} Nxe4 {[%emt 0:00:07]} 20. Bxc7 {[%emt 0:00:03]} Kg6 {[%emt 0:02:26]} 21. Bd8 {[%emt 0:01:24]} Nc5 {[%emt 0:02:55]} 22. Nc4 {[%emt 0:18:36]} Nb7 {[%emt 0:06:55]} 23. Ne5+ {[%emt 0:00:13]} Kg7 {[%emt 0:00:34]} 24. Nc6 {[%emt 0:00:32]} Nxd8 {[%emt 0:08:53]} 25. exd8=Q {[%emt 0:00:21]} Raxd8 {[%emt 0:00:09]} 26. Nxd8 {[%emt 0:00:12]} Rxd8 {[%emt 0:00:03]} 27. Kf1 {[%emt 0:00:16]} Rd2 {[%emt 0:00:32]} 28. Rc1 {[%emt 0:00:05]} h5 {[%emt 0:00:27]} 29. Ke1 {[%emt 0:00:06]} Rd6 {[%emt 0:01:31]} 30. Rd1 {[%emt 0:00:04]} Re6+ {[%emt 0:00:17]} 31. Kd2 {[%emt 0:00:30]} h4 {[%emt 0:01:50]} 32. c4 {[%emt 0:01:37]} Rf6 {[%emt 0:00:45]} 33. Ke2 {[%emt 0:01:42]} Re6+ {[%emt 0:00:14]} 34. Kf1 {[%emt 0:04:10]} Re4 {[%emt 0:00:57]} 35. b3 {[%emt 0:00:12]} hxg3 {[%emt 0:00:38]} 36. hxg3 {[%emt 0:01:11]} Re6 {[%emt 0:00:18]} 37. Rd7 {[%emt 0:00:44]} a5 {[%emt 0:00:08]} 38. Rd5 {[%emt 0:00:15]} Rc6 {[%emt 0:00:23]} 39. Ke2 {[%emt 0:04:26]} a4 {[%emt 0:01:08]} 40. Kd3 {[%emt 0:01:46]} axb3 {[%emt 0:00:29]} 41. axb3 {[%emt 0:30:01]} Rf6 {[%emt 0:03:29]} 42. f4 {[%emt 0:00:00]} Re6 {[%emt 0:01:01]} 43. Re5 {[%emt 0:00:00]} Rd6+ {[%emt 0:00:30]} 44. Kc3 {[%emt 0:00:00]} Kf8 {[%emt 0:01:30]} 45. Re3 {[%emt 0:00:00]} f6 {[%emt 0:01:05]} 46. Kb4 {[%emt 0:00:00]} Kf7 {[%emt 0:00:37]} 47. f5 {[%emt 0:00:00]} 1-0

[Event "Lueneburg Open-A 2019"]
[Site "Lueneburg"]
[Date "2019.08.03"]
[Round "1.10"]
[White "Krotofil, Kurt"]
[Black "Colpe, Malte"]
[Result "0-1"]
[ECO "D38"]
[WhiteElo "1889"]
[BlackElo "2367"]
[Annotator "ChessBase"]
[PlyCount "112"]
[EventDate "2019.08.03"]
[EventType "swiss"]
[EventCountry "GER"]
[SourceTitle "playchess.com"]
[Source "ChessBase"]
[SourceQuality "1"]
[TimeControl "40/5400+30:1800+30"]

1. d4 {[%emt 0:00:00]} d5 {[%emt 0:00:00]} 2. c4 {[%emt 0:00:00]} e6 {[%emt 0:00:03]} 3. Nc3 {[%emt 0:00:15]} Bb4 {[%emt 0:01:01]} 4. Nf3 {[%emt 0:01:05]} Nf6 {[%emt 0:01:37]} 5. Bg5 {[%emt 0:01:13]} h6 {[%emt 0:00:27]} 6. Bxf6 {[%emt 0:01:42]} Qxf6 {[%emt 0:00:07]} 7. e3 {[%emt 0:00:34]} O-O {[%emt 0:01:01]} 8. Bd3 {[%emt 0:00:42]} c5 {[%emt 0:04:33]} 9. O-O {[%emt 0:01:02]} cxd4 {[%emt 0:06:17]} 10. Nxd4 {[%emt 0:00:25]} Bxc3 {[%emt 0:06:06]} 11. bxc3 {[%emt 0:00:09]} dxc4 {[%emt 0:03:59]} 12. Bxc4 {[%emt 0:00:12]} Nd7 {[%emt 0:09:59]} 13. Be2 {[%emt 0:24:33]} Nc5 {[%emt 0:02:03]} 14. Rc1 {[%emt 0:15:48]} Rd8 {[%emt 0:04:38]} 15. Qc2 {[%emt 0:01:55]} e5 {[%emt 0:08:14]} 16. Nb3 {[%emt 0:00:50]} Bf5 {[%emt 0:00:35]} 17. Qb2 {[%emt 0:01:16]} Nd3 {[%emt 0:09:31]} 18. Bxd3 {[%emt 0:00:17]} Bxd3 {[%emt 0:00:20]} 19. Rfd1 {[%emt 0:00:18]} Rac8 {[%emt 0:01:37]} 20. Rd2 {[%emt 0:05:20]} b6 {[%emt 0:03:29]} 21. Rcd1 {[%emt 0:09:04]} e4 {[%emt 0:01:02]} 22. Nd4 {[%emt 0:04:25]} Rd5 {[%emt 0:00:50]} 23. f3 {[%emt 0:05:50]} Rdc5 {[%emt 0:03:08]} 24. Rc1 {[%emt 0:00:23]} Qh4 {[%emt 0:03:36]} 25. Rf2 {[%emt 0:02:47]} exf3 {[%emt 0:03:12]} 26. Nxf3 {[%emt 0:03:53]} Qe7 {[%emt 0:03:15]} 27. Qd2 {[%emt 0:00:48]} Bg6 {[%emt 0:02:01]} 28. Nd4 {[%emt 0:05:41]} Re5 {[%emt 0:02:20]} 29. Re1 {[%emt 0:01:41]} Qc5 {[%emt 0:03:41]} 30. Rc1 {[%emt 0:00:40]} Qa3 {[%emt 0:03:26]} 31. Nf3 {[%emt 0:03:01]} Rd5 {[%emt 0:01:22]} 32. Nd4 {[%emt 0:00:05]} Rdc5 {[%emt 0:01:51]} 33. Ne2 {[%emt 0:00:57]} R5c7 {[%emt 0:04:32]} 34. Rf4 {[%emt 0:01:23]} Re7 {[%emt 0:02:09]} 35. Nd4 {[%emt 0:02:08]} Qc5 {[%emt 0:02:13]} 36. Rf3 {[%emt 0:01:12]} Qd5 {[%emt 0:00:58]} 37. Rf2 {[%emt 0:02:03]} Kh7 {[%emt 0:00:51]} 38. Rf3 {[%emt 0:00:46]} b5 {[%emt 0:00:55]} 39. Qb2 {[%emt 0:00:53]} Be4 {[%emt 0:01:09]} 40. Rf2 {[%emt 0:00:27]} Re5 {[%emt 0:00:54]} 41. Rcf1 {[%emt 0:31:39]} Bg6 {[%emt 0:01:29]} 42. Qd2 {[%emt 0:00:00]} a6 {[%emt 0:01:17]} 43. Re1 {[%emt 0:00:00]} Qc5 {[%emt 0:01:16]} 44. Rc1 {[%emt 0:00:00]} Qa3 {[%emt 0:01:19]} 45. Nb3 {[%emt 0:00:00]} Re4 {[%emt 0:04:09]} 46. Nd4 {[%emt 0:00:00]} b4 {[%emt 0:01:22]} 47. Ne2 {[%emt 0:00:00]} Rec4 {[%emt 0:00:47]} 48. Qd6 {[%emt 0:00:00]} R4c6 {[%emt 0:05:44]} 49. Qe7 {[%emt 0:00:00]} R6c7 {[%emt 0:01:13]} 50. Qd6 {[%emt 0:00:00]} a5 {[%emt 0:00:40]} 51. Rd1 {[%emt 0:00:00]} Qxa2 {[%emt 0:01:37]} 52. Nf4 {[%emt 0:00:00]} Qb3 {[%emt 0:01:35]} 53. Nxg6 {[%emt 0:00:00]} fxg6 {[%emt 0:00:08]} 54. cxb4 {[%emt 0:00:00]} Rc1 {[%emt 0:01:20]} 55. Rxc1 {[%emt 0:00:00]} Rxc1+ {[%emt 0:00:03]} 56. Rf1 {[%emt 0:00:00]} Qxe3+ {[%emt 0:00:08]} 0-1

[Event "Lueneburg Open-A 2019"]
[Site "Lueneburg"]
[Date "2019.08.03"]
[Round "1.12"]
[White "Foo, Tzun Hong"]
[Black "Jahncke, Giso"]
[Result "0-1"]
[ECO "B06"]
[WhiteElo "1880"]
[BlackElo "2325"]
[Annotator "NA"]
[PlyCount "98"]
[EventDate "2019.08.03"]
[EventType "swiss"]
[EventCountry "GER"]
[SourceTitle "playchess.com"]
[Source "ChessBase"]
[SourceQuality "1"]
[TimeControl "40/5400+30:1800+30"]

1. e4 {[%emt 0:00:00]} g6 {[%emt 0:00:29]} 2. d4 {[%emt 0:00:06]} Bg7 {[%emt 0:00:07]} 3. Nf3 {[%emt 0:00:43]} d6 {[%emt 0:00:15]} 4. Bd3 {[%emt 0:01:38]} Nc6 {[%emt 0:01:32]} 5. c3 {[%emt 0:00:48]} e5 {[%emt 0:01:37]} 6. Bc2 {[%emt 0:07:44]} Bg4 {[%emt 0:03:04]} 7. d5 {[%emt 0:05:02]} Nb8 {[%emt 0:03:34]} 8. Ba4+ {[%emt 0:05:27]} Nd7 {[%emt 0:03:27]} 9. h3 {[%emt 0:01:03]} Bxf3 {[%emt 0:00:05]} 10. Qxf3 {[%emt 0:00:09]} h6 {[%emt 0:04:09]} 11. O-O {[%emt 0:08:27]} Ne7 {[%emt 0:00:11]} 12. Qe2 {[%emt 0:03:06]} O-O {[%emt 0:00:41]} 13. f4 {[%emt 0:03:43]} exf4 {[%emt 0:01:02]} 14. Bxd7 {[%emt 0:00:17]} Qxd7 {[%emt 0:00:07]} 15. Bxf4 {[%emt 0:00:08]} Rae8 {[%emt 0:02:00]} 16. Qd3 {[%emt 0:03:15]} f5 {[%emt 0:05:27]} 17. Nd2 {[%emt 0:10:29]} g5 {[%emt 0:00:59]} 18. Be3 {[%emt 0:00:13]} f4 {[%emt 0:00:30]} 19. Bd4 {[%emt 0:01:28]} Ng6 {[%emt 0:00:10]} 20. Nf3 {[%emt 0:05:47]} Ne5 {[%emt 0:02:31]} 21. Bxe5 {[%emt 0:03:26]} Bxe5 {[%emt 0:01:06]} 22. Nd4 {[%emt 0:00:36]} Bxd4+ {[%emt 0:00:09]} 23. cxd4 {[%emt 0:04:29]} Qh7 {[%emt 0:00:26]} 24. Rae1 {[%emt 0:00:24]} Re7 {[%emt 0:09:37]} 25. Re2 {[%emt 0:02:20]} h5 {[%emt 0:00:26]} 26. Qf3 {[%emt 0:03:43]} Qg7 {[%emt 0:14:55]} 27. Qxh5 {[%emt 0:12:33]} Qxd4+ {[%emt 0:00:06]} 28. Kh1 {[%emt 0:01:01]} Qe5 {[%emt 0:01:16]} 29. Qg4 {[%emt 0:06:19]} Rh7 {[%emt 0:02:25]} 30. Rf3 {[%emt 0:09:38]} Rh4 {[%emt 0:00:35]} 31. Qe6+ {[%emt 0:00:47]} Qxe6 {[%emt 0:00:09]} 32. dxe6 {[%emt 0:00:05]} Re8 {[%emt 0:01:38]} 33. Rb3 {[%emt 0:00:26]} b6 {[%emt 0:00:26]} 34. Rb5 {[%emt 0:00:46]} c5 {[%emt 0:01:08]} 35. b4 {[%emt 0:00:52]} Rxe6 {[%emt 0:00:31]} 36. bxc5 {[%emt 0:00:14]} dxc5 {[%emt 0:00:08]} 37. a4 {[%emt 0:00:14]} g4 {[%emt 0:00:26]} 38. Kh2 {[%emt 0:01:03]} Reh6 {[%emt 0:03:08]} 39. Rb3 {[%emt 0:00:22]} f3 {[%emt 0:00:35]} 40. Rf2 {[%emt 0:00:20]} fxg2 {[%emt 0:01:08]} 41. Rxg2 {[%emt 0:10:36]} Rxh3+ {[%emt 0:00:05]} 42. Rxh3 {[%emt 0:00:09]} Rxh3+ {[%emt 0:00:03]} 43. Kg1 {[%emt 0:00:08]} Ra3 {[%emt 0:00:04]} 44. Rxg4+ {[%emt 0:00:32]} Kf7 {[%emt 0:00:05]} 45. e5 {[%emt 0:07:06]} Ke6 {[%emt 0:00:08]} 46. Re4 {[%emt 0:00:31]} Ra2 {[%emt 0:00:05]} 47. Kf1 {[%emt 0:00:47]} Kd5 {[%emt 0:00:21]} 48. Re1 {[%emt 0:05:51]} Rxa4 {[%emt 0:01:04]} 49. e6 {[%emt 0:00:11]} Rf4+ {[%emt 0:00:05]} 0-1

[Event "Lueneburg Open-A 2019"]
[Site "Lueneburg"]
[Date "2019.08.03"]
[Round "1.13"]
[White "Stork, Oliver"]
[Black "Hesse, Juergen"]
[Result "1-0"]
[ECO "E67"]
[WhiteElo "2322"]
[BlackElo "1877"]
[Annotator "NA"]
[PlyCount "69"]
[EventDate "2019.08.03"]
[EventType "swiss"]
[EventCountry "GER"]
[SourceTitle "playchess.com"]
[Source "ChessBase"]
[SourceQuality "1"]
[TimeControl "40/5400+30:1800+30"]

1. c4 {[%emt 0:00:00]} Nf6 {[%emt 0:00:00]} 2. Nf3 {[%emt 0:00:00]} g6 {[%emt 0:00:47]} 3. g3 {[%emt 0:00:00]} Bg7 {[%emt 0:00:26]} 4. Bg2 {[%emt 0:00:03]} d6 {[%emt 0:00:36]} 5. O-O {[%emt 0:00:13]} O-O {[%emt 0:01:02]} 6. Nc3 {[%emt 0:00:17]} c6 {[%emt 0:01:14]} 7. d4 {[%emt 0:01:49]} Nbd7 {[%emt 0:01:40]} 8. b4 {[%emt 0:05:51]} e5 {[%emt 0:03:03]} 9. b5 {[%emt 0:04:58]} e4 {[%emt 0:10:26]} 10. Nd2 {[%emt 0:08:06]} d5 {[%emt 0:01:30]} 11. Qb3 {[%emt 0:13:53]} Nb6 {[%emt 0:09:39]} 12. cxd5 {[%emt 0:00:06]} cxd5 {[%emt 0:00:15]} 13. a4 {[%emt 0:00:04]} Be6 {[%emt 0:01:41]} 14. Rd1 {[%emt 0:00:29]} Qd7 {[%emt 0:10:35]} 15. a5 {[%emt 0:07:30]} Nc8 {[%emt 0:02:40]} 16. Nf1 {[%emt 0:12:04]} h6 {[%emt 0:04:19]} 17. Na4 {[%emt 0:01:24]} Re8 {[%emt 0:08:33]} 18. Nc5 {[%emt 0:02:46]} Qc7 {[%emt 0:02:11]} 19. Bf4 {[%emt 0:01:50]} Qe7 {[%emt 0:00:38]} 20. Rac1 {[%emt 0:12:07]} g5 {[%emt 0:05:11]} 21. Be5 {[%emt 0:00:48]} Ng4 {[%emt 0:03:28]} 22. Nxe6 {[%emt 0:06:58]} Qxe6 {[%emt 0:01:21]} 23. Bxg7 {[%emt 0:00:40]} Kxg7 {[%emt 0:00:11]} 24. Bh3 {[%emt 0:00:14]} f5 {[%emt 0:02:55]} 25. Bxg4 {[%emt 0:02:13]} fxg4 {[%emt 0:00:38]} 26. Rc7+ {[%emt 0:00:04]} Re7 {[%emt 0:01:30]} 27. Rdc1 {[%emt 0:00:35]} Rf7 {[%emt 0:04:28]} 28. Rxf7+ {[%emt 0:08:22]} Qxf7 {[%emt 0:03:30]} 29. Qb4 {[%emt 0:02:32]} Qd7 {[%emt 0:03:36]} 30. Ne3 {[%emt 0:01:03]} h5 {[%emt 0:01:50]} 31. Qc5 {[%emt 0:03:40]} Ne7 {[%emt 0:02:05]} 32. Qxe7+ {[%emt 0:00:06]} Qxe7 {[%emt 0:00:20]} 33. Nf5+ {[%emt 0:00:04]} Kf6 {[%emt 0:00:16]} 34. Nxe7 {[%emt 0:00:04]} Kxe7 {[%emt 0:00:07]} 35. Rc7+ {[%emt 0:00:03]} 1-0